Cogmind - Beta 11.1 @@@ ROGUE MODE // 2022.06.11 @ 19:26:49 Player: BoboTMG Result: Self-destructed Performance ------------- Evolutions (1) 500 Regions Visited (2) 400 Robots Destroyed (37) 185 Value Destroyed (658) 658 Prototype IDs (3) 60 Alien Tech Used (0) 0 Bonus (8) 8 TOTAL SCORE: 1811 Bonus ------- High Alert Combat Kills 8 Cogmind --------- Core Integrity 97/400 Matter 45/300 Energy 100/100 System Corruption 0% Temperature Cool (6) Movement Core (1350) Ox26 Location -9/Materials Parts ------- > --- POWER (2) -------- (None) > --- PROPULSION (2) --- (None) > --- UTILITY (3) ------ Huge Storage Unit > --- WEAPON (2) ------- (None) > --- INVENTORY (25) --- Ion Engine Ion Engine Ion Engine Light Ion Engine Aluminum Leg Aluminum Leg Wheel Large Battery (200) Compact Matter Pod (0) Structural Scanner Sensor Array Signal Interpreter Improved Terrain Scanner Power Shielding Utility Shielding Particle Gun Assault Rifle Light Assault Rifle Light Assault Rifle Shotgun Grenade Launcher Grenade Launcher Scythe Peak State ------------ > --- POWER ------------ Ion Engine Ion Engine > --- PROPULSION ------- Wheel Wheel > --- UTILITY ---------- Huge Storage Unit Improved Terrain Scanner Light Armor Plating > --- WEAPON ----------- Particle Gun Light Assault Rifle > --- INVENTORY -------- Ion Engine Ion Engine Ion Engine Light Ion Engine Aluminum Leg Aluminum Leg Wheel Large Battery Compact Matter Pod Structural Scanner Sensor Array Signal Interpreter Seismic Detector Power Shielding Tractor Beam Particle Gun Assault Rifle Heavy Assault Rifle Grenade Launcher Grenade Launcher Scythe [Rating: 14] Favorites ----------- Power Ion Engine Engine Ion Engine Propulsion Wheel Leg Aluminum Leg Wheel Wheel Utility Huge Storage Unit Device Structural Scanner Storage Huge Storage Unit Protection Power Shielding Weapon Assault Rifle Energy Gun Particle Gun Ballistic Gun Assault Rifle Launcher Grenade Launcher Impact Weapon Maul Build | -11 -10 -9 ------- Run | Scr Mat Mat Slots Evolved 2 | . . 2 Power 1 | . . 1 Propulsion . | . . . Utility 1 | . . 1 Weapon . | . . . Parts Attached 91 | 10 64 17 Power 4 | 1 2 1 Engine 4 | 1 2 1 Core . | . . . Reactor . | . . . Propulsion 14 | 3 10 1 Treads . | . . . Leg 2 | . 2 . Wheel 12 | 3 8 1 Hover . | . . . Flight . | . . . Utility 57 | 4 41 12 Device 45 | 2 35 8 Storage 5 | 2 2 1 Processor . | . . . Hackware . | . . . Protection 7 | . 4 3 Artifact . | . . . Weapon 16 | 2 11 3 Energy Gun 5 | 1 4 . Energy Cannon . | . . . Ballistic Gun 7 | 1 5 1 Ballistic Cannon . | . . . Launcher 3 | . 1 2 Special Weapon . | . . . Impact Weapon 1 | . 1 . Slashing Weapon . | . . . Piercing Weapon . | . . . Special Melee Weapon . | . . . Unidentified Prototypes . | . . . Parts Lost 13 | . 5 8 Power 3 | . 1 2 Propulsion 5 | . 3 2 Utility 3 | . . 3 Weapon 2 | . 1 1 Highest Loss Streak 7 | . 4 7 To Critical Strikes . | . . . Average Slot Usage (%) 96 | . 97 90 Engine 14 | . 13 19 Wheel 25 | . 27 20 Device 8 | . 8 6 Storage 13 | . 14 10 Protection 6 | . 5 13 Energy Gun 10 | . 11 6 Ballistic Gun 13 | . 14 10 Launcher 1 | . . 3 Naked Turns . | . . . Heaviest Build 100 | 12 92 100 Greatest Support 32 | 26 32 20 Greatest Overweight (x) 31 | . 27 31 Average Overweight (x) 2 | . 2 4 Largest Inventory Capacity 25 | 8 25 25 Average Capacity 22 | 7 22 23 Most Carried 25 | 7 25 23 Average Carried 18 | 4 19 19 Final Capacity 25 | 8 25 25 Final Carried 23 | 7 22 23 Class Distribution -------------------- 82% | Mutant 17% | Scavenger-Mutant Dominant Class ---------------- Mutant | -10/Materials Scavenger-Mutant | -9/Materials Resources | -11 -10 -9 ----------- Run | Scr Mat Mat Matter Collected 1153 | 260 750 143 Remotely 546 | 208 328 10 Salvage Created 965 | 66 755 144 Parts 73 | 8 49 16 Haulers Intercepted . | . . . Recyclers Shooed 2 | . 2 . Parts Field Recycled . | . . . Retrieved Matter . | . . . Parts Self-Destructed . | . . . Prevented . | . . . Kills | -11 -10 -9 ------- Run | Scr Mat Mat Combat Hostiles Destroyed 25 | . 18 7 Melee 1 | . 1 . Guns 19 | . 15 4 AOE 4 | . 1 3 Classes Destroyed 7 | 2 4 1 Worker 3 | . 2 1 Tunneler 1 | 1 . . Recycler 4 | 1 3 . Watcher 4 | . 3 1 Swarmer 13 | . 9 4 Grunt 10 | . 9 1 Sentry 2 | . . 2 Best Kill Streak 4 | 1 4 3 Combat Bots Only 3 | . 3 2 Max Kills in Single Turn 2 | 1 2 1 Gunslinging 1 | . 1 . Exploded 1 | . 1 1 Melee 1 | . 1 . Uniques/NPCs Destroyed . | . . . Combat | -11 -10 -9 -------- Run | Scr Mat Mat Damage Taken 1782 | . 858 924 Core 495 | . 192 303 Absorbed by Shields . | . . . Redirected to Shielding 30 | . 16 14 Regen/Repaired (Parts) 504 | . 89 415 Core Remaining (%) 61 | 100 23 . Volleys Fired 117 | 2 79 36 Largest 2 | 2 2 2 Hottest 130 | 60 130 88 Shots Fired 198 | 4 140 54 Gun 187 | 4 138 45 Cannon . | . . . Launcher 11 | . 2 9 Special . | . . . Kinetic 96 | 2 67 27 Thermal 91 | 2 71 18 Explosive 11 | . 2 9 Electromagnetic . | . . . Robot Hit Streak 10 | 4 10 6 Robot Miss Streak 5 | . 5 3 Penetration Max . | . . . Secondary Targets 1 | . 1 . Max Gunslinging Chain 1 | . 1 . Shots Hit Robots 117 | 4 84 29 Core Hits 51 | 2 36 13 Critical Kills 1 | . . 1 Critical Parts Destroyed 1 | . 1 . Critical Strikes 3 | . 2 1 Burn 1 | . 1 . Destroy 1 | . . 1 Smash 1 | . 1 . Melee Attacks 7 | . 7 . Impact 7 | . 7 . Slashing . | . . . Piercing . | . . . Sneak Attacks . | . . . Combat Hostiles . | . . . Follow-up Attacks . | . . . Damage Inflicted 1817 | 50 1141 626 Guns 1301 | 50 962 289 Cannons . | . . . Explosions 406 | . 69 337 Melee 104 | . 104 . Ramming 6 | . 6 . Kinetic 594 | 27 430 137 Thermal 707 | 23 532 152 Explosive 406 | . 69 337 Electromagnetic . | . . . Impact 104 | . 104 . Slashing . | . . . Piercing . | . . . Highest Corruption . | . . . Average Corruption . | . . . Corruption Purged . | . . . Corruption Blocked . | . . . Overload Shots . | . . . Overflow Damage 50 | . 49 1 Projectiles . | . . . Explosions 1 | . . 1 Melee 49 | . 49 . Knockbacks . | . . . Impact . | . . . Kinetic . | . . . Secondary . | . . . Self-Inflicted Damage 32 | . 3 29 Shots 3 | . . 3 Rammed 1 | . 1 . Targets Rammed 1 | . 1 . Kicked . | . . . Crushed . | . . . Highest Temperature 531 | . 531 474 Average Temperature 132 | . 109 163 Received Heat Transfer 417 | . 210 207 Effects 10 | . 5 5 Shutdowns 1 | . . 1 Energy Bleed 1 | . . 1 Matter Decay 1 | . . 1 Damage (minor) 2 | . . 2 Damage (major) 5 | . 5 . Siege Activations . | . . . Robots Corrupted . | . . . Combat Hostiles . | . . . Parts Fried 1 | . 1 . Impact Corruptions 2 | . 2 . Robots Melted 1 | . 1 . Combat Hostiles 1 | . 1 . Parts Melted 1 | . 1 . Heat Transferred 1796 | 50 1376 370 Parts Sabotaged . | . . . Parts Stolen . | . . . Parts Stripped . | . . . Power Chain Reactions . | . . . Missiles Intercepted . | . . . Alert | -11 -10 -9 ------- Run | Scr Mat Mat Peak Influence 482 | 10 202 482 Initial 55 | . 6 55 Average 102 | 6 70 269 Maximum Alert Level 2 | . 1 2 Low Security (%) 84 | 100 95 33 Level 1 10 | . 4 38 Level 2 4 | . . 27 Level 3 . | . . . Level 4 . | . . . Level 5 . | . . . High Security . | . . . Max Security . | . . . Squads Dispatched 5 | . 4 1 Investigation 3 | . 3 . Extermination . | . . . Reinforcement 2 | . 1 1 Assault . | . . . Garrison . | . . . Intercept . | . . . Searches Triggered . | . . . Construction Impeded . | . . . Haulers Reinforced . | . . . Active Scanning Responses . | . . . Cargo Convoy Interrupts . | . . . Stealth | -11 -10 -9 --------- Run | Scr Mat Mat Distress Signals 2 | . 1 1 Communications Jammed . | . . . Distress Signals . | . . . Times Spotted 45 | . 25 20 Peak Tracking Total 8 | . 3 8 Tactical Retreats 7 | . 4 3 Traps | -11 -10 -9 ------- Run | Scr Mat Mat Traps Triggered 3 | . 3 . Indirectly . | . . . Trap Hack Attempts . | . . . Triggered . | . . . Disarmed . | . . . Reprogrammed . | . . . Reused . | . . . Traps Extracted . | . . . Installed . | . . . Triggered . | . . . Machines | -11 -10 -9 ---------- Run | Scr Mat Mat Machines Disabled . | . . . Max in Single Turn . | . . . Machines Sabotaged . | . . . Garrisons Compromised . | . . . Overloaded Fab Kills . | . . . Hacking | -11 -10 -9 --------- Run | Scr Mat Mat Machines Accessed 8 | . 7 1 Terminals 6 | . 6 . Fabricators . | . . . Repair Stations 2 | . 1 1 Recycling Units . | . . . Scanalyzers . | . . . Garrison Access . | . . . Total Hacks 26 | . 22 4 Successful 18 | . 16 2 Failed 8 | . 6 2 Catastrophic 1 | . 1 . Database Lockouts . | . . . Manual . | . . . Terminals 18 | . 18 . Fabricators . | . . . Repair Stations 8 | . 4 4 Recycling Units . | . . . Scanalyzers . | . . . Garrison Access . | . . . Terminal Hacks 12 | . 12 . Record 4 | . 4 . Prototype ID Bank 2 | . 2 . Alert Level 2 | . 2 . Locate Traps 2 | . 2 . Dispatch Records 1 | . 1 . Maintenance Status 1 | . 1 . Fabricator Hacks . | . . . Repair Station Hacks 6 | . 4 2 Scan Component 3 | . 2 1 Repair 3 | . 2 1 Recycling Unit Hacks . | . . . Scanalyzer . | . . . Garrison Access Hacks . | . . . Unauthorized Hacks . | . . . Terminals . | . . . Fabricators . | . . . Repair Stations . | . . . Recycling Units . | . . . Scanalyzers . | . . . Garrison Access . | . . . Data Cores Recovered . | . . . Used . | . . . Hacking Detections 5 | . 5 . Full Trace Events . | . . . Feedback Events . | . . . Feedback Blocked . | . . . Robot Schematics Acquired . | . . . Robots Built . | . . . Authchips . | . . . Time . | . . . Total Robot Build Rating . | . . . Part Schematics Acquired . | . . . Parts Built . | . . . Authchips . | . . . Time . | . . . Total Part Build Rating . | . . . Parts Repaired 3 | . 2 1 Time 78 | . 52 26 Parts Recycled . | . . . Recycled Matter . | . . . Retrieved Matter . | . . . Retrieved Components . | . . . Parts Scanalyzed . | . . . Part Schematics Acquired . | . . . Parts Damaged . | . . . Bothacking | -11 -10 -9 ------------ Run | Scr Mat Mat Used RIF Installer . | . . . Robots Hacked . | . . . Non-combat . | . . . Combat . | . . . Robot Hacks Applied . | . . . Relay Couplers Released . | . . . Fabnet Peak Effective % . | . . . Robots Rewired . | . . . Allies Hacked . | . . . Hacks Repelled . | . . . Allies | -11 -10 -9 -------- Run | Scr Mat Mat Total Allies . | . . . Largest Group . | . . . Highest-Rated Group . | . . . Highest-Rated Ally . | . . . Total Orders . | . . . Ally Attacks . | . . . Total Damage . | . . . Kills . | . . . Allies Corrupted . | . . . Allies Melted . | . . . Intel | -11 -10 -9 ------- Run | Scr Mat Mat Robot Analysis Total . | . . . Derelict Logs Recovered . | . . . Drone Launches . | . . . Drone Recoveries . | . . . Exploration | -11 -10 -9 ------------- Run | Scr Mat Mat Turns Passed 2500 | 109 1944 447 Spaces Moved 1361 | 76 1089 196 Core 5 | 1 3 1 Treads . | . . . Legs . | . . . Wheels 1356 | 75 1086 195 Hover . | . . . Flight . | . . . Fastest Speed 50 | 50 80 80 Average Speed 129 | 85 129 146 Slowest Speed 1600 | 90 1400 1600 Overloaded Moves . | . . . Propulsion Burnouts . | . . . Robots Hopped . | . . . Cave-ins Triggered . | . . . Exploration Rate (%) 39 | 6 98 13 Regions Visited 2 Branch Regions . Pre-discovered Areas . | . . . Known Exits Taken . | . . . Unknown Exits Taken 2 | 1 1 . Scrap Searched . | . . . Spaces Dug . | . . . Terrain Destroyed 58 | . 13 45 Melee . | . . . Projectile . | . . . AOE 58 | . 13 45 Terrain Rammed . | . . . Walls Destroyed . | . . . Machines Disabled . | . . . Actions | -11 -10 -9 --------- Run | Scr Mat Mat Total 1868 | 113 1452 303 Wait 183 | 9 149 25 Move 1359 | 75 1088 196 Hop . | . . . Pick Up 76 | 11 43 22 Fast Attach 15 | 9 3 3 Attach 10 | . 7 3 Detach 2 | . . 2 Swap 66 | 1 54 11 Drop 32 | 6 21 5 Fire 117 | 2 79 36 Melee 7 | . 7 . Ram 1 | . 1 . Kick . | . . . Crush . | . . . Escape Stasis . | . . . Rewire . | . . . Trap . | . . . Miscellaneous . | . . . Route ------- -11/Scrapyard -10/Materials (discovered 5 exits: *Mat x3 / [*Min x2]) -9/Materials History --------- Turn | Location | Event 9 | -11/Scrapyard | Discovered new exit (range 15) 110 | -11/Scrapyard | Entered Materials 373 | -10/Materials | Build established: Mutant 424 | -10/Materials | Discovered new exit (range 15) 799 | -10/Materials | Discovered new exit (range 7) 975 | -10/Materials | Discovered new exit (range 15) 1048 | -10/Materials | Repaired Assault Rifle 1075 | -10/Materials | Repaired Weapon Shielding 1210 | -10/Materials | Discovered new exit (range 6) 1422 | -10/Materials | Core integrity fell below 50% 1479 | -10/Materials | Lost 4 parts (1p2n1w) 1769 | -10/Materials | Discovered new exit (range 13) 2054 | -10/Materials | Entered another Materials area 2054 | -9/Materials | Evolved 2 slots: Power x1, Utility x1 2388 | -9/Materials | Repaired Huge Storage Unit 2495 | -9/Materials | Core integrity fell below 50% 2501 | -9/Materials | Self-destructed Last Messages --------------- 02463_ U-05 Engineer builds a Wall. 02468_ U-05 Engineer lays Concrete. 02470_ U-05 Engineer builds a Door. 02475_ U-05 Engineer lays Concrete. 02478_ Wheel destroyed. 02479_ Seismic Detector destroyed. 02480_ U-05 Engineer lays Concrete. 02481_ S-10 Pest destroyed. 02482_ Acquired 10 matter. 02482_ U-05 Engineer lays Concrete. 02483_ The unstable cave ceiling collapses. 02483_ U-05 Engineer lays Concrete. 02484_ Wheel destroyed. 02486_ U-05 Engineer builds a Wall. 02489_ K-01 Serf collects debris. 02491_ Ion Engine destroyed. 02491_ Hvy. Assault Rifle destroyed. 02492_ Tractor Beam destroyed. 02492_ K-01 Serf collects debris. 02493_ Ion Engine destroyed. Map ----- +----------------------------------------------------+ | | | | | | | | | ??????????????????????????#############??????????? | | ?????????????????????????? # ######??????? | | ?????????????????????????? # ##!! #??????? | | ????????????????????# ?"""# ##!/ #??????? | | ????????????????????# """# ##!! ######## | | ????????????????????# """#####+######!! ! | | ????????????????????# + ######/ #### | | ??????????????????#######+## #???#// #?## | | ????????????? ########### ! # | | ????????????????????##### [ [ = = !# | | ?????????????????######## [== ########### = # | | ?????????????????# # ############### | | ?????????????????# # # ########## ## | | ?????????????????# # k ###= ! # ## | | ?????????????????+ """ #* # ### # ## | | ?????????????????# """ #= # ### + ## | | ?????????????????# """ # # ###// # ## | | ?????????????????######## # ###// # ## | | ??????????????????# [ # # ###/ # ##+ | | ??????????????????# """ # # ########## # | | ??????????????????# R" sg ## ########### # | | ??????????????????# """ #@ ###? #????????## # " | | ??????????????????# [ s #??? #????????## + " | | ??????????????????# *#g ##??? #??# # " | | ??????????????????# #???? #??# # | | ??????????????????###### #????+???# ### | | ???????????????????????## ##????????# #########? | | ????????????????????????# #?????????# ??? ? | | ????????????????????????# #?????????# ???????????? | | ????????????????????????# #?????????+????????????? | | ????????????????????????# #??????????????????????? | | ????????????????????????# #??????????????????????? | | ???????????????????????? ???????????????????????? | | ????????????????????????# ???????????????????????? | | ????????????????????????# ???????????????????????? | | ????????????????????????? ???????????????????????? | | ????????????????????????? ???????????????????????? | | ????????????????????????? ???????????????????????? | | ????????????????????????? ???????????????????????? | | ?????????????????????????????????????????????????? | | ?????????????????????????????????????????????????? | | ?????????????????????????????????????????????????? | | ?????????????????????????????????????????????????? | | ?????????????????????????????????????????????????? | | ?????????????????????????????????????????????????? | | ?????????????????????????????????????????????????? | +----------------------------------------------------+ Best States ------------- Heat Dissipation 35 Energy Generation 15 Energy Capacity 400 Matter Stores 278 Matter Capacity 300 Sight Range 16 Terrain Scan Range 16 Terrain Scan Density 10 Armor Coverage 150 Power Shielding 33 Weapon Shielding 33 Evasion (%) 44 Item Schematics ----------------- None Robot Schematics ------------------ None Fabricated ------------ Nothing Alien Tech Used ----------------- None Achievements -------------- Oops Use The Force Challenges ------------ None Game ------ Seed KAITLYN Manual? 1 Play Time 01:09:19 Cumulative 10.1 hours Start 2022.06.11 @ 17:56:30 End 2022.06.11 @ 19:26:49 Sessions 1 Manual Loads 0 Difficulty Rogue Special Mode None Game No. 5 Rogue 5 Adventurer 0 Explorer 0 Win Type - Total 0 Types 0/0/0/0/0/0/0/0/0 Lore% 13 Gallery% 6 Achievement% 7 Wizard Run 0 Options --------- ASCII 0 Keyboard 0 Movement Mouse Keybinds 0 Fullscreen 1 Font 18/X11 Map View 112x50 Tactical HUD 1 Map Filters NONE Filters NONE Steam 0 RUN: 1e761790-8392-4e42-bba3-09a5337107e2